{"text_format":"1","workbook":"xlsx","n_sheets":3,"sheets":["はじめに","様式第6号","プルダウン"],"not_rendered":{"charts":0,"images":2,"macros":0,"external_links":0,"defined_names":1,"comments":0,"pivot_tables":0},"unopened":[],"bounds":{"document_bytes":16777216,"sheet_cells":100000,"rows_first":2000,"rows_last":500,"rows_between":2000,"halvings":0,"cell_chars":16384,"cell_head_chars":4096},"cells_cut":0,"cells_raw":0,"read":"whole","date_system":"1900"}

{"sheet":"はじめに","index":0,"n_rows":28,"n_cols":2,"rows_kept":28,"cut":false,"hidden":false,"merged":[[1,0,1,12],[2,0,2,12],[4,1,4,12],[19,1,19,12]]}
["はじめに"]
["　このエクセルファイルで正規雇用等転換安定化支援助成金の「実績報告書」を作成します。\n（実績報告書は「様式第６号」様式の一枚組の書類になります）\n※この書類だけでは申請できません。他の必要書類については、詳細は手引き内「提出書類一覧」をご参照ください。\n"]
["作成に当たっては下記の手順を参考にしてください。"]
[1,"黄色のセルに必要事項を入力する"]
[null,"シートの黄色のセルに必要事項を入力してください。\n入力内容については申請の手引きをよく確認し、プルダウンで選択ができる箇所は選択項目から入力してください。"]
[null,"プルダウンで内訳金額を入力すると自動で金額が計算され金○○円の欄が入力されます。"]
[null,"※内訳金額をいれても計算がされない場合は、エクセルの設定でブックの計算が自動になっているか確認してください。"]
[null,"（ファイル→オプション→数式　から　「計算方法の設定」が「自動」になっていることを確認してください。）"]
[]
[]
[]
[]
[]
[]
[]
[]
[]
[]
[2,"□（チェックボックス）に✔（チェック）をいれる"]
[null,"申請内容に合わせて必要事項に✔を入れてください。"]
[]
[3,"①の申請書類を印刷して申請書「様式第６号」に実印（印鑑証明書に登録されているもの）を押す"]
[null,"必要事項の記入が完了したら、印刷し（白黒印刷の設定になっています）、様式第６号の㊞の箇所に実印を押してください。"]
[null,"※記入枠にかからないよう、印鑑を押してください。"]
[null,"※A4用紙で印刷してください。"]
[]
[4,"完成後のお手続き"]
["　","書類完成後は申請の手引きに記載のある、他の提出書類とあわせて担当までご提出ください。"]

{"sheet":"様式第6号","index":1,"n_rows":43,"n_cols":14,"rows_kept":43,"cut":false,"hidden":false,"merged":[[18,6,20,11],[17,6,17,12],[4,2,5,4],[6,2,6,4],[11,0,12,13],[13,0,13,13],[18,12,20,12],[7,2,7,4],[7,9,7,10],[15,2,15,5],[4,11,4,12],[7,11,7,12],[14,8,14,10],[9,0,9,13],[26,1,28,1],[24,1,24,3],[22,4,22,5],[17,4,17,5],[22,1,22,3],[17,1,17,3],[18,4,18,5],[19,4,19,5],[20,4,20,5],[18,2,18,3],[19,2,19,3],[20,2,20,3],[18,1,20,1],[22,6,22,11],[24,4,24,5],[26,12,28,12],[24,6,24,11],[28,4,28,5],[26,6,28,11],[2,10,2,13],[6,5,6,12],[5,5,5,6],[5,7,5,12],[7,5,7,8],[3,5,3,6],[3,7,3,9],[3,11,3,12],[4,6,4,9],[42,1,42,3],[40,4,40,12],[41,4,41,12],[42,4,42,12],[37,2,37,4],[41,1,41,3],[40,1,40,3],[37,5,37,8],[37,9,37,11],[35,5,35,8],[36,5,36,8],[36,2,36,4],[34,2,34,4],[35,2,35,4],[34,5,34,11],[35,9,35,11],[36,9,36,11],[32,9,32,11],[26,2,26,3],[27,2,27,3],[28,2,28,3],[26,4,26,5],[27,4,27,5],[32,3,32,6],[32,7,32,8]]}
["様式第6号（第12条関係）",null,null,null,null,null,null,null,null,null,null,null,"（令和５年度申請用）"]
[]
[null,null,null,null,null,null,null,null,null,null,"　　　年　　　月　　　日　"]
["東京都知事殿",null,null,null,null,"郵便番号",null,null,null,null,"―"]
[null,null,"事業主の所在地",null,null,"都道\n府県",null,null,null,null,"区市\n町村"]
[null,null,null,null,null,"丁目・番地・号・建物名"]
[null,null,"事業主の名称",null,null,null,null,null,null,null,null,null,null,"印"]
[null,null,"代表者役職",null,null,null,null,null,null,"代表者氏名"]
[]
["東京都正規雇用等転換安定化支援助成金\n実績報告書\n\n"]
[]
["　東京都正規雇用等転換安定化支援助成金（以下「助成金」という。）について、助成金交付要綱第１２条の規定に基づき、下記のとおり報告します。"]
[]
["記"]
[1,"実績報告額",null,null,null,null,"金",null,{"$f":"SUM(G19,G23,G25,G27)","v":0},null,null,"円"]
[]
[null,"（実績報告額の内訳）"]
[null,null,null,null,null,null,"交付申請額"]
[null,"対象労働者数","1人",null,"２０万円",null,null,null,null,null,null,null,"円"]
[null,null,"2人",null,"４０万円"]
[null,null,"3人以上",null,"６０万円"]
[]
[null,"退職金整備加算",null,null,"１０万円",null,null,null,null,null,null,null,"円"]
[]
[null,"結婚・育児支援制度\n整備加算",null,null,"１０万円",null,null,null,null,null,null,null,"円"]
[]
[null,"賃上げ加算","1人",null,"６万円",null,null,null,null,null,null,null,"円"]
[null,null,"2人",null,"１２万円"]
[null,null,"3人以上",null,"１８万円"]
[]
[]
["2　支援期間中の対象労働者の勤務状況"]
[null,null,"支援期間",null,null,null,null,"～",null,{"$f":"IFERROR(VLOOKUP(D33,プルダウン!A:U,2,FALSE),\"\")","v":""}]
[]
[null,null,"氏名",null,null,"所属事業所所在地（支援期間末日時点）\n（区市町村まで）",null,null,null,null,null,null,"賃上げ対象者"]
[null,1,null,null,null,"東京都"]
[null,2,null,null,null,"東京都"]
[null,3,null,null,null,"東京都"]
[]
["3　連絡先"]
[null,"所属"]
[null,"連絡担当者氏名"]
[null,"電話番号"]

{"sheet":"プルダウン","index":2,"n_rows":68,"n_cols":21,"rows_kept":68,"cut":false,"hidden":true,"merged":[]}
["取組（開始）","取組（終了）","金額（対象者分）","金額（退職金）","結婚・育児","賃上げ","金額","市区町村","転換年","１～3人","退職金","結婚・育児","賃上げ","労働者分金額","退職金分金額","結婚・育児","賃上げ","合計",null,null,"アルファベット業種"]
[]
["2023-07-01","2023-09-30",200000,0,0,0,200000,"千代田区","令和元",false,false,false,false,{"$f":"IF(J3=TRUE,200000,0)","v":0},{"$f":"IF(K3=TRUE,100000,0)","v":0},{"$f":"IF(L3=TRUE,100000,0)","v":0},{"$f":"IF(M3=TRUE,60000,0)","v":0},null,"Ａ","農業，林業",{"$f":"S3&\"  \"&T3","v":"Ａ  農業，林業"}]
["2023-08-01","2023-10-31",400000,100000,100000,60000,300000,"中央区","令和2",false,false,null,false,{"$f":"IF(J4=TRUE,400000,0)","v":0},{"$f":"IF(K4=TRUE,100000,0)","v":0},null,{"$f":"IF(M4=TRUE,120000,0)","v":0},null,"Ｂ","漁業",{"$f":"S4&\"  \"&T4","v":"Ｂ  漁業"}]
["2023-09-01","2023-11-30",600000,null,null,120000,400000,"港区","令和3",false,null,null,false,{"$f":"IF(J5=TRUE,600000,0)","v":0},null,null,{"$f":"IF(M5=TRUE,180000,0)","v":0},null,"Ｃ","鉱業，採石業，砂利採取業","Ｃ  鉱業，採石業，砂利採取業"]
["2023-10-01","2023-12-31",null,null,null,180000,500000,"新宿区","令和4",{"$f":"COUNTIF(J3:J5,TRUE)","v":0},{"$f":"COUNTIF(K3:K5,TRUE)","v":0},{"$f":"COUNTIF(L3:L5,TRUE)","v":0},{"$f":"COUNTIF(M3:M5,TRUE)","v":0},{"$f":"SUM(N3:N5)","v":0},{"$f":"SUM(O3:O5)","v":0},{"$f":"SUM(P3:P5)","v":0},{"$f":"SUM(Q3:Q5)","v":0},{"$f":"SUM(N6:Q6)","v":0},"Ｄ","建設業","Ｄ  建設業"]
["2023-11-01","2024-01-31",null,null,null,null,600000,"文京区",null,null,null,null,null,null,null,null,null,null,"Ｅ","製造業","Ｅ  製造業"]
["2023-12-01","2024-02-28",null,null,null,null,700000,"台東区",null,null,null,null,null,null,null,null,null,null,"Ｆ","電気・ガス・熱供給・水道業","Ｆ  電気・ガス・熱供給・水道業"]
[null,null,null,null,null,null,null,"墨田区",null,null,null,null,null,null,null,null,null,null,"Ｇ","情報通信業","Ｇ  情報通信業"]
[null,null,null,null,null,null,null,"江東区",null,null,null,null,null,null,null,null,null,null,"Ｈ","運輸業，郵便業","Ｈ  運輸業，郵便業"]
[null,null,null,null,null,null,null,"品川区",null,null,null,null,null,null,null,null,null,null,"Ｉ","卸売業，小売業","Ｉ  卸売業，小売業"]
[null,null,null,null,null,null,null,"目黒区",null,null,null,null,null,null,null,null,null,null,"Ｊ","金融業，保険業","Ｊ  金融業，保険業"]
[null,null,null,null,null,null,null,"大田区",null,null,null,null,null,null,null,null,null,null,"Ｋ","不動産業，物品賃貸業","Ｋ  不動産業，物品賃貸業"]
[null,null,null,null,null,null,null,"世田谷区",null,null,null,null,null,null,null,null,null,null,"Ｌ","学術研究，専門・技術サービス業","Ｌ  学術研究，専門・技術サービス業"]
[null,null,null,null,null,null,null,"渋谷区",null,null,null,null,null,null,null,null,null,null,"Ｍ","宿泊業，飲食サービス業","Ｍ  宿泊業，飲食サービス業"]
[null,null,null,null,null,null,null,"中野区",null,null,null,null,null,null,null,null,null,null,"Ｎ","生活関連サービス業，娯楽業","Ｎ  生活関連サービス業，娯楽業"]
[null,null,null,null,null,null,null,"杉並区",null,null,null,null,null,null,null,null,null,null,"Ｏ","教育，学習支援業","Ｏ  教育，学習支援業"]
[null,null,null,null,null,null,null,"豊島区",null,null,null,null,null,null,null,null,null,null,"Ｐ","医療，福祉","Ｐ  医療，福祉"]
[null,null,null,null,null,null,null,"北区",null,null,null,null,null,null,null,null,null,null,"Ｑ","複合サービス事業","Ｑ  複合サービス事業"]
[null,null,null,null,null,null,null,"荒川区",null,null,null,null,null,null,null,null,null,null,"Ｒ","サービス業（他に分類されないもの）","Ｒ  サービス業（他に分類されないもの）"]
[null,null,null,null,null,null,null,"板橋区"]
[null,null,null,null,null,null,null,"練馬区"]
[null,null,null,null,null,null,null,"足立区"]
[null,null,null,null,null,null,null,"葛飾区"]
[null,null,null,null,null,null,null,"江戸川区"]
[null,null,null,null,null,null,null,"八王子市"]
[null,null,null,null,null,null,null,"立川市"]
[null,null,null,null,null,null,null,"武蔵野市"]
[null,null,null,null,null,null,null,"三鷹市"]
[null,null,null,null,null,null,null,"青梅市"]
[null,null,null,null,null,null,null,"府中市"]
[null,null,null,null,null,null,null,"昭島市"]
[null,null,null,null,null,null,null,"調布市"]
[null,null,null,null,null,null,null,"町田市"]
[null,null,null,null,null,null,null,"小金井市"]
[null,null,null,null,null,null,null,"小平市"]
[null,null,null,null,null,null,null,"日野市"]
[null,null,null,null,null,null,null,"東村山市"]
[null,null,null,null,null,null,null,"国分寺市"]
[null,null,null,null,null,null,null,"国立市"]
[null,null,null,null,null,null,null,"福生市"]
[null,null,null,null,null,null,null,"狛江市"]
[null,null,null,null,null,null,null,"東大和市"]
[null,null,null,null,null,null,null,"清瀬市"]
[null,null,null,null,null,null,null,"東久留米市"]
[null,null,null,null,null,null,null,"武蔵村山市"]
[null,null,null,null,null,null,null,"多摩市"]
[null,null,null,null,null,null,null,"稲城市"]
[null,null,null,null,null,null,null,"羽村市"]
[null,null,null,null,null,null,null,"あきる野市"]
[null,null,null,null,null,null,null,"西東京市"]
[null,null,null,null,null,null,null,"瑞穂町"]
[null,null,null,null,null,null,null,"日の出町"]
[null,null,null,null,null,null,null,"檜原村"]
[null,null,null,null,null,null,null,"奥多摩町"]
[]
[null,null,null,null,null,null,null,"大島町"]
[null,null,null,null,null,null,null,"利島村"]
[null,null,null,null,null,null,null,"新島村"]
[null,null,null,null,null,null,null,"神津島村"]
[]
[null,null,null,null,null,null,null,"三宅村"]
[null,null,null,null,null,null,null,"御蔵島村"]
[]
[null,null,null,null,null,null,null,"八丈町"]
[null,null,null,null,null,null,null,"青ヶ島村"]
[]
[null,null,null,null,null,null,null,"小笠原村"]